[Event "44th Chess Olympiad Women 2022"]
[Site "Chennai"]
[Date "2022.08.03"]
[Round "6.12"]
[White "Chirivi C, Jenny Astrid"]
[Black "Miranda Llanes, Yerisbel"]
[Result "0-1"]
[WhiteElo "2157"]
[BlackElo "2347"]
[Annotator "TA"]
[PlyCount "130"]
[EventDate "2022.??.??"]
[TimeControl "60"]

{[%evp 11,130,29,19,0,0,0,24,14,35,15,18,5,12,10,18,16,17,0,27,21,39,16,17,11,
17,0,16,-1,41,0,0,-12,15,0,0,-19,9,0,0,-5,-9,-16,-16,-43,-13,-11,0,-8,-9,-70,
-70,-76,-70,-129,-121,-118,-122,-133,-131,-134,-112,-116,-115,-114,-100,-99,
-62,-70,-62,-65,-81,-76,-45,-102,-52,-84,-83,-90,-83,-126,-124,-197,-126,-126,
-116,-126,-126,-143,-142,-137,-86,-94,-97,-112,-109,-126,-126,-126,-126,-126,
-126,-6383,-6187,-29966,-2316,-29968,-29970,-29970,-29971,-29971,-29972,-29972,
-29973,-29971,-29963,-29976,-29976,-29976,-29977,-29979,-29955]} 1. d4 {
[%emt 0:00:05]} Nf6 {[%emt 0:00:14]} 2. c4 {[%emt 0:00:13]} e6 {[%emt 0:00:01]}
3. Nf3 {[%emt 0:00:14]} d5 {[%emt 0:00:03]} 4. Nc3 {[%emt 0:00:19]} Bb4 {
[%emt 0:00:03]} 5. Qa4+ {[%emt 0:00:31]} Nc6 {[%emt 0:00:05]} 6. e3 {[%emt 0:
00:00]} O-O {[%emt 0:00:29]} 7. a3 {[%emt 0:00:46] D38: Queen's Gambit
Declined: Ragozin Defence (4 Nf3 Bb4).} Bxc3+ {[%emt 0:02:42]} 8. bxc3 {
[%emt 0:00:11]} Ne4 {[%emt 0:02:31]} 9. Bd3 {[%emt 0:00:48] White has an edge.}
Nd6 {[%emt 0:04:36]} 10. cxd5 {[%emt 0:07:15]} exd5 {[%emt 0:00:10]} 11. Qc2 {
[%emt 0:00:59] [#]} h6 $146 {[%emt 0:00:26]} ({Predecessor:} 11... f5 12. O-O
Be6 13. a4 Ne4 14. Ba3 Rf6 15. c4 h6 16. Rab1 Rb8 17. Rb5 a6 {1-0 (33) Okamura,
M (2036)-Tejo,J (1941) Joao Pessoa 2018}) 12. O-O {[%emt 0:02:36]} Re8 {
[%emt 0:01:26]} 13. a4 {[%emt 0:02:50]} b6 {[%emt 0:02:21]} 14. Ba3 {[%emt 0:
00:00]} Bb7 {[%emt 0:02:45]} 15. Nd2 {[%emt 0:06:03]} Na5 {[%emt 0:04:23]} 16.
Rfe1 {[%emt 0:13:28]} Qg5 {[%emt 0:05:23]} 17. Nf3 {[%emt 0:06:13]} Qf6 {
[%emt 0:10:39]} 18. Ne5 {[%emt 0:10:50]} Rad8 {[%emt 0:03:21][%cal Yc7c5]} 19.
Rab1 {[%emt 0:07:11]} Nc6 {[%emt 0:13:08]} 20. Nf3 {[%emt 0:06:20]} Na5 {
[%emt 0:10:51]} 21. Nd2 {[%emt 0:06:53]} Qg5 {[%emt 0:03:09]} 22. Nf3 {[%emt 0:
00:00]} Qf6 {[%emt 0:02:40]} 23. Nd2 {[%emt 0:01:10][%cal Yf3d2,Yd2e4,Ye4g3]}
Bc8 {[%emt 0:06:14]} 24. Bxd6 {[%emt 0:05:01]} Qxd6 {[%emt 0:01:25]} 25. e4 {
[%emt 0:00:50]} dxe4 {[%emt 0:02:26]} 26. Nxe4 {[%emt 0:00:51]} Qd5 {[%emt 0:
02:07]} 27. Ng3 {[%emt 0:07:21]} Rxe1+ {[%emt 0:04:25]} 28. Rxe1 {[%emt 0:00:
05]} Be6 {[%emt 0:00:03]} 29. h3 {[%emt 0:01:45]} c5 {[%emt 0:03:24]} 30. Re5 {
[%emt 0:01:01]} (30. Bh7+ $11 Kh8 31. dxc5) 30... Qd6 $1 $15 {[%emt 0:01:14]}
31. Nf5 $1 {[%emt 0:01:22]} Bxf5 {[%emt 0:02:53]} 32. Bxf5 {[%emt 0:00:29]} (
32. Rxf5 $15 cxd4 33. cxd4) 32... cxd4 $17 {[%emt 0:02:36]} 33. cxd4 {[%emt 0:
00:32]} Nc6 {[%emt 0:00:25]} ({Stronger than} 33... Qxd4 34. Re7 $15) 34. Re1 {
[%emt 0:00:33]} ({Avoid the trap} 34. Bh7+ $2 Kh8 35. Re1 g6 36. Bxg6 Nxd4 $19)
34... Nxd4 {[%emt 0:00:09]} 35. Qb1 {[%emt 0:00:31]} Qf4 {[%emt 0:02:16]} 36.
Bh7+ {[%emt 0:00:21]} Kh8 {[%emt 0:00:16]} 37. Bd3 {[%emt 0:00:32]} Ne6 {
[%emt 0:00:38] Black is more active.} 38. Qb5 {[%emt 0:00:00]} Qd2 {[%emt 0:04:
15]} 39. Re3 {[%emt 0:00:09]} Qc1+ {[%emt 0:00:38]} 40. Kh2 $1 {[%emt 0:00:31]}
Qc7+ {[%emt 0:00:37]} 41. g3 {[%emt 0:30:36]} Qc5 {[%emt 0:05:25]} 42. Qb3 {
[%emt 0:00:00]} (42. Bc4 $15) 42... Qd4 {[%emt 0:00:00]} (42... Kg8 $17 43. Qb5
Kf8) 43. Qb5 {[%emt 0:00:00]} Qf6 $36 {[%emt 0:00:00] Black is on the roll.}
44. Kg1 {[%emt 0:00:00]} g6 {[%emt 0:00:00]} 45. Qc6 {[%emt 0:00:00]} Kg7 {
[%emt 0:01:56]} 46. Rf3 {[%emt 0:00:00]} (46. h4 $17) 46... Qe5 {[%emt 0:01:20]
} ({Better is} 46... Qa1+ $19 47. Kg2 Ng5) 47. Re3 {[%emt 0:00:00]} Qd4 {
[%emt 0:02:28]} 48. Be2 {[%emt 0:00:00]} Rd6 {[%emt 0:03:14]} 49. Qe8 {[%emt 0:
01:12]} Ng5 {[%emt 0:04:17]} 50. h4 {[%emt 0:00:00]} Nh7 {[%emt 0:01:45]} (
50... Re6 $142 51. Rxe6 Nxe6) 51. Qb5 {[%emt 0:00:00]} Nf6 {[%emt 0:00:44]} 52.
Bf3 {[%emt 0:00:33]} h5 {[%emt 0:00:53]} 53. Kg2 {[%emt 0:00:22]} Ng4 {[%emt 0:
01:16]} 54. Re2 {[%emt 0:00:17]} Rf6 {[%emt 0:00:30]} 55. Qb3 {[%emt 0:00:53]}
Ne5 {[%emt 0:01:20]} 56. Re3 {[%emt 0:00:00] This costs White the game.} (56.
Be4 $17) 56... Nxf3 $19 {[%emt 0:01:02]} 57. Rxf3 {[%emt 0:00:06] Endgame [#]
KQR-KQR} Qe4 $1 {[%emt 0:00:25] ( -> ...Rxf3)} 58. Qa3 {[%emt 0:00:43]} a6 {
[%emt 0:01:17] Black mates.} 59. Qc3 {[%emt 0:00:23] [#]} Qxf3+ $1 {[%emt 0:00:
09]} 60. Qxf3 {[%emt 0:00:06]} Rxf3 {[%emt 0:00:12]} 61. Kxf3 {[%emt 0:00:18]
KP-KP} Kf6 {[%emt 0:00:10]} 62. Ke4 {[%emt 0:00:30]} Ke6 {[%emt 0:00:13]} 63.
f3 {[%emt 0:00:00]} f5+ {[%emt 0:00:33]} 64. Kd4 {[%emt 0:01:04]} Kd6 {[%emt 0:
00:10]} 65. f4 {[%emt 0:00:40]} b5 {[%emt 0:01:01] Weighted Error Value:
White=0.45/ Black=0.09 (flawless)} 0-1

[Event "44th Chess Olympiad Women 2022"]
[Site "Chennai"]
[Date "2022.08.03"]
[Round "6.12"]
[White "Forgas Moreno, Yaniela"]
[Black "Argote Heredia, Valentina"]
[Result "1-0"]
[WhiteElo "2343"]
[BlackElo "2205"]
[Annotator "TA"]
[PlyCount "152"]
[EventDate "2022.??.??"]
[TimeControl "60"]

{[%evp 18,152,1,-16,7,-81,-85,-84,-100,-95,-98,-92,-47,-103,-100,-102,-103,
-106,-106,-108,-106,-110,-113,-145,-134,-107,-143,-91,-84,-105,-101,-124,-127,
-130,-104,-104,-87,-84,-48,-86,-22,-56,-21,-11,-22,-29,-20,-28,-31,-91,-96,-99,
-76,-95,-31,-90,0,0,0,0,0,0,50,49,53,47,49,0,0,0,0,0,0,0,0,0,0,0,0,0,0,0,0,0,0,
0,0,-248,0,-12840,0,0,0,0,0,0,0,-29980,-29978,-12838,0,-40,-40,-373,-40,-40,
-40,-116,-40,-7541,-10522,-1879,-263,-257,-250,-233,-186,-175,49,49,56,56,56,
56,1306,85,87,104,122,163,7220,7220,6462,2696,793,506,12841]} 1. e4 {[%emt 0:
00:00]} c5 {[%emt 0:00:05]} 2. Nc3 {[%emt 0:00:11]} Nc6 {[%emt 0:00:24]} 3. Bb5
{[%emt 0:00:11]} Nd4 {[%emt 0:00:06]} 4. Nf3 {[%emt 0:00:15]} a6 {[%emt 0:00:
00]} 5. Bd3 {[%emt 0:00:41]} g6 {[%emt 0:08:10]} 6. Nxd4 {[%emt 0:01:28]} cxd4
{[%emt 0:00:06]} 7. Ne2 {[%emt 0:00:04]} Bg7 {[%emt 0:00:23]} 8. f4 {[%emt 0:
00:00]} d6 {[%emt 0:04:06]} 9. O-O {[%emt 0:01:41]} Nf6 {[%emt 0:05:55]} 10.
Kh1 {[%emt 0:05:45]} O-O {[%emt 0:05:25] B23: Closed Sicilian: Lines without
g3.} 11. Qe1 {[%emt 0:10:20]} (11. Nxd4 $11 Nxe4 12. Bxe4 Bxd4 13. Qf3) 11...
e5 $17 {[%emt 0:09:39]} 12. fxe5 {[%emt 0:18:53]} dxe5 {[%emt 0:00:08] Black
is better.} 13. b3 {[%emt 0:00:06]} b5 {[%emt 0:06:41]} 14. a4 {[%emt 0:04:41]}
Bb7 {[%emt 0:00:57] [#]} 15. Ng3 $146 {[%emt 0:01:17]} (15. axb5 $15 axb5 16.
Ba3) ({Predecessor:} 15. Ba3 Re8 16. Ng1 bxa4 17. bxa4 Bc6 18. a5 Qd7 19. Qh4
Qg4 20. Qxg4 Nxg4 21. Bc4 {1-0 (56) Champetier,S (1983)-Zhong,K (1576) Laval
2017}) 15... Bc6 {[%emt 0:09:31]} 16. axb5 {[%emt 0:06:18]} axb5 {[%emt 0:00:
00]} 17. Ba3 {[%emt 0:00:06]} Re8 {[%emt 0:02:13]} 18. Qe2 {[%emt 0:01:21]} Qd7
{[%emt 0:08:56]} 19. Bb4 {[%emt 0:08:25]} h5 {[%emt 0:00:21][%cal Yh7h5,Yh5h4]}
20. Rxa8 {[%emt 0:01:06]} Rxa8 {[%emt 0:00:08]} 21. Kg1 {[%emt 0:00:00]} h4 {
[%emt 0:02:32]} 22. Nh1 {[%emt 0:00:11]} Nh5 {[%emt 0:06:39][%cal Yf7f5]} 23.
Qe1 {[%emt 0:05:07]} Qd8 $1 {[%emt 0:02:37][%cal Yf7f5]} 24. Be2 {[%emt 0:06:
56]} Nf4 {[%emt 0:00:09]} 25. Bf3 {[%emt 0:00:05]} Ra2 {[%emt 0:00:00]} 26. Qb1
{[%emt 0:02:23]} Ra6 {[%emt 0:10:30]} 27. Nf2 {[%emt 0:01:37] Prevents d3.} Ra7
{[%emt 0:06:58]} 28. Kh1 {[%emt 0:05:36]} Rd7 {[%emt 0:00:21]} (28... Bf8 $17
29. Bxf8 Kxf8) 29. Qa2 {[%emt 0:01:45]} d3 {[%emt 0:01:27]} 30. c3 {[%emt 0:02:
29]} Qb6 {[%emt 0:00:24] Against Qa6} 31. Qa5 $1 {[%emt 0:00:00]} Qb7 {[%emt 0:
00:04]} 32. Ra1 {[%emt 0:02:35]} h3 {[%emt 0:00:08]} 33. g3 {[%emt 0:01:20]} (
33. gxh3 $15 f5 34. Qa6) 33... Ne6 $1 {[%emt 0:00:05]} 34. Nxh3 {[%emt 0:02:30]
} Bxe4 {[%emt 0:00:10]} 35. Bxe4 {[%emt 0:00:09]} Qxe4+ {[%emt 0:00:05]} 36.
Kg1 {[%emt 0:00:04]} Rd8 {[%emt 0:04:27]} (36... Bh6 $1 $17 {[%cal Rh6d2]} 37.
Nf2 (37. Qxb5 Rd8 $11) 37... Qc6) 37. Ng5 $11 {[%emt 0:00:00]} Qd5 {[%emt 0:00:
04]} 38. Nxe6 {[%emt 0:00:53]} fxe6 {[%emt 0:00:03]} 39. Qb6 {[%emt 0:00:14]}
Bh6 {[%emt 0:02:36] Prevents Qe3.} (39... Rd7 $11) 40. Qf2 $14 {[%emt 0:02:42]}
Rd7 {[%emt 0:01:00]} 41. Rf1 $1 {[%emt 0:06:42]} (41. Qf6 Bxd2 42. Qxg6+ Kh8
43. Qh5+ Kg8 44. Qg6+ Kh8 45. Qh5+ Kg8 46. Qg6+ $11) 41... e4 {[%emt 0:10:59]}
42. Qf6 {[%emt 0:20:53]} (42. Bc5 $1 $14 {deserves consideration.}) 42... Kh7
$11 {[%emt 0:01:48]} 43. Be7 {[%emt 0:02:25]} (43. Qh4 e3 44. c4 bxc4 45. bxc4
Qe5 $17) 43... Bg7 {[%emt 0:07:31]} (43... Bxd2 {leads to mate.} 44. Qf7+ Kh6
45. Qf8+ Kh5 46. Qh8+ Bh6 47. Rf4 $1) 44. Qh4+ {[%emt 0:00:54]} Kg8 {[%emt 0:
00:19] ...e3 is the strong threat.} 45. Bg5 {[%emt 0:02:00]} Rf7 {[%emt 0:01:
57]} (45... b4 $5 46. c4 Bd4+ 47. Be3 Bxe3+ 48. dxe3 Qe5 $11) 46. Rxf7 {
[%emt 0:01:00]} Kxf7 {[%emt 0:00:05] Endgame KQB-KQB} 47. Qf4+ {[%emt 0:00:07]}
Kg8 {[%emt 0:00:17]} 48. b4 {[%emt 0:00:33]} Be5 {[%emt 0:01:24]} 49. Qe3 {
[%emt 0:01:11]} Bd6 {[%emt 0:00:00]} 50. Bf6 {[%emt 0:01:38]} Qf5 {[%emt 0:00:
34]} 51. Bd4 {[%emt 0:00:38]} Be7 {[%emt 0:02:13] And now ...e5 would win.} 52.
Qf4 {[%emt 0:00:46] Inhibits e5.} (52. Qh6 $11 {and White stays safe.} e5 53.
Be3) 52... g5 $2 {[%emt 0:00:40]} ({Black should try} 52... Qxf4 $19 53. gxf4
Bd6) 53. Qe5 $2 {[%emt 0:00:22]} (53. Qf2 $11) 53... Kf7 $2 {[%emt 0:01:00]} ({
Better is} 53... Qxe5 $19 54. Bxe5 e3 55. dxe3 d2) 54. Qg7+ {[%emt 0:00:45]}
Ke8 {[%emt 0:00:05]} 55. Qh8+ {[%emt 0:00:14]} (55. Be3 $5 {[%cal Rg7g8]})
55... Kd7 {[%emt 0:00:00]} 56. Qb8 {[%emt 0:00:23]} Qd5 {[%emt 0:02:40]} 57.
Qe5 $2 {[%emt 0:00:35]} (57. Qa7+ $11 Ke8 58. Be3) 57... Qxe5 {[%emt 0:01:15]}
58. Bxe5 {[%emt 0:00:05] KB-KB} Kc6 $2 {[%emt 0:00:07]} (58... e3 $1 $19 {
[%cal Re3d2]} 59. dxe3 d2) 59. Kf2 {[%emt 0:00:44]} Kd5 {[%emt 0:00:26]} 60.
Bc7 {[%emt 0:00:00]} (60. Bg7 $15) 60... g4 $2 {[%emt 0:01:26]} ({Black should
play} 60... Kc4 $1 $19 {aiming for ...Bf6.} 61. Be5 Kd5) 61. Bf4 $1 $15 {
[%emt 0:00:00]} Bd8 {[%emt 0:00:26]} 62. Be3 {[%emt 0:00:48] [#] Prevents Bb6.}
Kc4 $1 {[%emt 0:01:06]} 63. h3 $2 {[%emt 0:00:24]} (63. Ke1 $15) 63... gxh3 $19
{[%emt 0:00:17]} 64. g4 {[%emt 0:00:12]} Bh4+ $2 {[%emt 0:00:43]} (64... Bf6
65. g5 {[#]} Bxc3 $1 66. dxc3 Kxc3) 65. Kg1 {[%emt 0:00:07]} Bg3 {[%emt 0:00:
52] Hoping for ...Kd5.} 66. g5 {[%emt 0:00:22]} Be5 {[%emt 0:00:00]} 67. g6 {
[%emt 0:00:22][%cal Ye3f4]} Bg7 $2 {[%emt 0:00:19]} (67... Kd5 $19 {Strongly
threatening ...Bf6.} 68. Bf4 Bf6) 68. Kh2 $14 {[%emt 0:00:23]} Kd5 {[%emt 0:00:
35]} 69. Kxh3 {[%emt 0:00:07]} e5 {[%emt 0:00:36]} 70. Kg4 {[%emt 0:01:23]
Threatens to win with Kf5.} Ke6 {[%emt 0:00:04]} 71. Kg5 {[%emt 0:00:27] Black
must now prevent Bc5.} Bf8 {[%emt 0:00:33]} 72. Bf2 {[%emt 0:01:10]} Bg7 {
[%emt 0:00:51]} 73. Bc5 {[%emt 0:00:21]} Kd5 $2 {[%emt 0:00:00]} (73... Bf8)
74. Kf5 $18 {[%emt 0:00:52] White is clearly winning.} Bh8 {[%emt 0:00:34]} 75.
Be3 {[%emt 0:00:21]} ({Don't go for} 75. Bf8 $2 e3 76. dxe3 d2 $19) (75. Bb6
$142 Bg7 76. Bc5) 75... Bg7 {[%emt 0:00:15]} 76. Bg5 {[%emt 0:00:51]} Bf8 {
[%emt 0:00:49] Weighted Error Value: White=0.58/Black=0.52} (76... Kd6 $142 77.
Be3 Kd5) 1-0

[Event "44th Chess Olympiad Women 2022"]
[Site "Chennai"]
[Date "2022.08.03"]
[Round "6.12"]
[White "Rodriguez Rueda, Paula Andrea"]
[Black "Hernandez Gil, Ineymig"]
[Result "1-0"]
[WhiteElo "2237"]
[BlackElo "2234"]
[Annotator "NA RC"]
[PlyCount "83"]
[EventDate "2022.??.??"]
[TimeControl "60"]

1. d4 {[%emt 0:00:06]} d5 {[%emt 0:00:27]} 2. c4 {[%emt 0:00:15]} c6 {[%emt 0:
00:00]} 3. Nc3 {[%emt 0:00:35]} Nf6 {[%emt 0:00:23]} 4. cxd5 {[%emt 0:00:16]}
cxd5 {[%emt 0:00:28]} 5. Bf4 {[%emt 0:00:12]} Nc6 {[%emt 0:00:39]} 6. e3 {
[%emt 0:00:07]} a6 {[%emt 0:00:45]} 7. Bd3 {[%emt 0:00:04]} e6 {[%emt 0:02:41]}
8. Rc1 {[%emt 0:00:23]} Bd6 {[%emt 0:01:02]} 9. Nge2 {[%emt 0:03:04]} O-O {
[%emt 0:01:08]} 10. O-O {[%emt 0:01:18]} Re8 {[%emt 0:04:32]} 11. Bb1 {[%emt 0:
00:00]} Bxf4 {[%emt 0:06:13]} 12. Nxf4 {[%emt 0:04:05]} Bd7 {[%emt 0:04:00]}
13. a3 {[%emt 0:18:16]} Na5 {[%emt 0:03:08]} 14. e4 {[%emt 0:18:08]} dxe4 {
[%emt 0:04:05]} 15. Nxe4 {[%emt 0:00:05]} Nxe4 {[%emt 0:03:47]} 16. Bxe4 {
[%emt 0:00:05]} Nc6 {[%emt 0:05:03]} 17. Rc3 {[%emt 0:08:06]} e5 {[%emt 0:00:
00]} 18. dxe5 {[%emt 0:01:08]} Rxe5 {[%emt 0:01:14]} 19. Qd3 {[%emt 0:12:11]}
h6 {[%emt 0:03:09]} 20. Rd1 {[%emt 0:02:17]} Qe8 {[%emt 0:05:11]} 21. f3 {
[%emt 0:01:34]} f5 {[%emt 0:10:13]} 22. Qxd7 {[%emt 0:01:29]} fxe4 {[%emt 0:00:
00]} 23. Qxb7 {[%emt 0:07:57]} exf3 {[%emt 0:04:44]} 24. Rxf3 {[%emt 0:02:50]}
Re1+ {[%emt 0:12:25]} 25. Rxe1 {[%emt 0:00:07]} Qxe1+ {[%emt 0:00:07]} 26. Rf1
{[%emt 0:00:01]} Qe3+ {[%emt 0:00:17]} 27. Kh1 {[%emt 0:00:10]} Rf8 {[%emt 0:
00:00]} 28. Qxc6 {[%emt 0:00:36]} Rxf4 {[%emt 0:00:18]} 29. Qxa6 {[%emt 0:00:
00]} Rd4 {[%emt 0:05:13]} 30. Qc8+ {[%emt 0:01:42]} Kh7 {[%emt 0:00:05]} 31. h3
{[%emt 0:01:00]} Rd2 {[%emt 0:00:37]} 32. Qf5+ {[%emt 0:00:28]} Kg8 {[%emt 0:
00:00]} 33. Rc1 {[%emt 0:02:32]} Rd8 {[%emt 0:01:42]} 34. Qf1 {[%emt 0:00:28]}
Qd2 {[%emt 0:00:53]} 35. b4 {[%emt 0:00:38]} Rf8 {[%emt 0:00:41]} 36. Qc4+ {
[%emt 0:00:08]} Kh8 {[%emt 0:00:08]} 37. Rf1 {[%emt 0:01:06]} Re8 {[%emt 0:00:
00]} 38. b5 {[%emt 0:00:23]} Re2 {[%emt 0:01:20]} 39. Rf8+ {[%emt 0:01:30]} Kh7
{[%emt 0:00:01]} 40. Qg8+ {[%emt 0:00:06]} Kg6 {[%emt 0:00:03]} 41. Qf7+ {
[%emt 0:30:06]} Kh7 {[%emt 0:30:56]} 42. Qf5+ {[%emt 0:00:25]} 1-0

[Event "44th Chess Olympiad Women 2022"]
[Site "Chennai"]
[Date "2022.08.03"]
[Round "6.13"]
[White "Nandhidhaa, P V.."]
[Black "Richards, Heather S"]
[Result "1/2-1/2"]
[WhiteElo "2312"]
[BlackElo "2146"]
[Annotator "TA"]
[PlyCount "166"]
[EventDate "2022.??.??"]
[TimeControl "60"]

{[%evp 10,166,-11,-12,0,0,0,-3,0,-3,0,-11,0,-2,0,0,0,-17,44,54,52,47,73,85,118,
69,136,142,155,138,154,143,157,158,176,125,134,127,127,85,79,79,144,143,167,
165,181,183,199,138,227,232,221,224,326,218,272,189,202,202,222,211,188,21,27,
0,0,0,22,0,756,722,652,156,142,149,149,159,176,139,193,194,194,169,182,183,173,
136,298,270,235,208,267,172,285,258,342,342,776,731,471,77,76,0,0,0,206,199,
192,0,0,0,0,0,0,0,0,0,0,0,0,0,0,0,0,0,0,0,0,0,0,0,0,0,0,0,0,0,0,0,0,0,0,0,0,0,
0,0,0,0,0,0,0,0,0,0,0,0,0]} 1. e4 {[%emt 0:01:08]} e6 {[%emt 0:00:17]} 2. d4 {
[%emt 0:00:28]} d5 {[%emt 0:00:07]} 3. Bd3 {[%emt 0:05:40][%cal Yf1d3,Yd3e4,
Ye4f3]} dxe4 {[%emt 0:00:10]} 4. Bxe4 {[%emt 0:00:05]} Nf6 {[%emt 0:00:00]} 5.
Bf3 {[%emt 0:00:07]} c5 {[%emt 0:00:21]} 6. Ne2 {[%emt 0:00:40]} Nc6 {[%emt 0:
00:09][%cal Rc5d4] C01: French: Exchange Variation.} 7. Be3 {[%emt 0:00:00]}
cxd4 {[%emt 0:00:32]} 8. Nxd4 {[%emt 0:01:23]} Ne5 {[%emt 0:00:33]} 9. O-O {
[%emt 0:01:14]} Be7 {[%emt 0:16:51]} 10. Nc3 {[%emt 0:04:34]} O-O {[%emt 0:05:
15]} 11. Qe2 {[%emt 0:06:23]} a6 {[%emt 0:15:02]} 12. Rad1 {[%emt 0:00:00]
[%cal Yd4e6]} Qc7 {[%emt 0:05:00]} 13. Bg5 {[%emt 0:05:40] [#]} Nc4 $146 {
[%emt 0:19:27] [#]} (13... Ng6 $11) ({Predecessor:} 13... Nxf3+ 14. Qxf3 Re8
15. Rfe1 Bd7 16. Ne4 Nxe4 17. Bxe7 Rxe7 18. Qxe4 Ree8 19. Re3 e5 {½-½ (28)
Bokros,A (2455)-Petrik,T (2476) Slovakia 2019}) 14. Nc6 $1 $14 {[%emt 0:10:38]}
bxc6 {[%emt 0:04:04]} 15. Qxc4 {[%emt 0:00:36]} Rb8 {[%emt 0:02:57]} 16. b3 {
[%emt 0:02:54]} (16. Bxc6 $2 Rb4 17. Bf4 e5 18. Bxe5 Qxe5 $19) (16. Qxc6 Qxc6
17. Bxc6 Rxb2 $15) 16... c5 {[%emt 0:12:27]} 17. a3 {[%emt 0:02:05] Prevents
Rb4.0x0.00144c1ffc4edp-1022s more active pieces.} (17. Bf4 $16 e5 18. Bg3)
17... Bb7 {[%emt 0:01:20]} (17... Bd6 $14) 18. Bf4 $1 $36 {[%emt 0:05:52]
White has strong initiative.} e5 {[%emt 0:00:08]} 19. Bxb7 {[%emt 0:00:00]
[%cal Yf4e5]} Rxb7 {[%emt 0:02:18]} 20. Bg5 {[%emt 0:01:54]} Qa5 {[%emt 0:00:
00]} 21. Bxf6 {[%emt 0:15:41]} Bxf6 {[%emt 0:00:25]} 22. Rd6 {[%emt 0:01:33]} (
22. Nd5 $18) 22... Rb6 {[%emt 0:05:13]} 23. Rxb6 {[%emt 0:06:52]} Qxb6 {
[%emt 0:00:06]} 24. Na4 {[%emt 0:02:02]} Qb5 {[%emt 0:02:35]} 25. Qxc5 {
[%emt 0:02:42]} Qe2 {[%emt 0:00:07] Prevents Re1.} (25... Qxc5 $142 26. Nxc5
Rc8) 26. Nb6 {[%emt 0:01:11]} Rd8 {[%emt 0:00:43] Threatens to win with ...Rd1.
} 27. Nd5 {[%emt 0:00:38]} Bg5 {[%emt 0:01:10]} 28. c4 {[%emt 0:00:51]
Inhibits Qb5.} h5 {[%emt 0:00:26]} 29. Qa5 {[%emt 0:01:32]} (29. b4 $18) 29...
h4 {[%emt 0:00:25]} (29... Qd3 $16) 30. Qc3 $1 $18 {[%emt 0:00:47]} e4 {
[%emt 0:00:54]} 31. Qe5 {[%emt 0:01:28]} f6 {[%emt 0:01:01]} (31... Bf6 {
keeps fighting.} 32. Qc7 (32. Nxf6+ gxf6 33. Qa1 h3 $11) 32... Qb2) 32. Qe6+ {
[%emt 0:00:32]} Kh7 {[%emt 0:00:57]} 33. Nc3 {[%emt 0:00:51]} Qb2 {[%emt 0:00:
00]} 34. Qxe4+ {[%emt 0:00:19]} Kh8 {[%emt 0:00:00]} 35. Nd5 {[%emt 0:00:27]}
Qxb3 {[%emt 0:00:00]} 36. f4 $2 {[%emt 0:01:13]} (36. Qe7 $1 $18 {[%cal Re7d8]}
Rb8 37. Qd6) 36... Bh6 $1 $11 {[%emt 0:00:00]} 37. Ne7 {[%emt 0:00:28]} Qxa3 {
[%emt 0:00:22]} 38. Ng6+ {[%emt 0:00:39]} Kg8 $1 {[%emt 0:00:04]} 39. Ne7+ {
[%emt 0:00:15]} Kf7 $2 {[%emt 0:00:23]} (39... Kh8 $11) 40. Re1 $1 $18 {
[%emt 0:00:32] Intending Qe6+ and mate.} Qd6 {[%emt 0:02:19] Against Qe6+} 41.
Nf5 $2 {[%emt 0:04:08]} (41. Kh1 $1 $18 {[%cal Yc4c5] is the precise move to
win. c5! would kill now.} Kf8 42. c5 (42. Qh7 $2 Qxe7 43. Qb1 Qc7 $19)) 41...
Qd3 $16 {[%emt 0:13:42]} 42. Nxh6+ {[%emt 0:11:07]} (42. Nxh4 $6 Qxe4 43. Rxe4
g6 $11) 42... gxh6 {[%emt 0:00:10] Endgame KQR-KQR} 43. Qe6+ {[%emt 0:01:11]} (
43. Qc6 $6 Kg6 $11) 43... Kg7 {[%emt 0:00:38] [#]} 44. Qg4+ {[%emt 0:01:51]} ({
Don't play} 44. Qxa6 $6 Qd4+ 45. Kh1 Re8 $14) 44... Kh8 {[%emt 0:07:24]} (44...
Kf8 $16 {was called for.}) 45. Qxh4 $18 {[%emt 0:00:20]} Qg6 {[%emt 0:00:08]}
46. f5 {[%emt 0:02:17]} Qg5 {[%emt 0:03:57]} 47. Qxg5 {[%emt 0:01:27]} hxg5 {
[%emt 0:00:07] KR-KR} 48. Re6 {[%emt 0:01:27]} Ra8 $2 {[%emt 0:00:29]} (48...
Kg7 $16 49. Rxa6 Rd4) 49. Rxf6 {[%emt 0:05:40]} a5 {[%emt 0:00:09]} 50. Rb6 {
[%emt 0:01:19]} a4 {[%emt 0:00:23]} 51. Rb2 {[%emt 0:00:00] Ra2 is the strong
threat.} Kg7 {[%emt 0:01:04]} (51... a3 $142 52. Ra2 Kg7) 52. Kf2 {[%emt 0:00:
30]} Kf6 {[%emt 0:00:28]} 53. g4 {[%emt 0:00:27]} a3 $2 {[%emt 0:02:04]} (53...
Rh8 54. Kf3 Rc8) 54. Ra2 {[%emt 0:00:02]} Ke5 {[%emt 0:00:15]} 55. Ke3 $2 {
[%emt 0:01:22]} (55. Kg3 $18 {is more deadly.} Kd4 56. h4 gxh4+ 57. Kxh4) 55...
Rh8 $16 {[%emt 0:02:40] ( -> ...Rh3+)} 56. Kd3 {[%emt 0:01:22]} (56. Re2 $16)
56... Rh3+ $11 {[%emt 0:00:09]} 57. Kc2 {[%emt 0:00:00] Strongly threatening
Kb1.} Kd4 $2 {[%emt 0:03:11]} (57... Rxh2+ $11 58. Kb3 Rh3+ 59. Kb4 Rg3) 58.
Kb1 $18 {[%emt 0:00:29]} Kxc4 {[%emt 0:01:57] [#]} 59. Rg2 $2 {[%emt 0:01:27]}
(59. Rf2 $1 $18 {And now f6 would win.} Rh7 60. f6) 59... Rf3 {[%emt 0:00:46]
The position is equal.} 60. Ka2 {[%emt 0:00:50]} Kb4 {[%emt 0:00:52]} 61. Re2 {
[%emt 0:01:02]} (61. h3 $5) 61... Rf4 {[%emt 0:00:21]} 62. Rd2 {[%emt 0:02:30]}
Ka4 {[%emt 0:01:00]} 63. h3 {[%emt 0:00:43]} Kb4 {[%emt 0:00:06]} 64. Re2 {
[%emt 0:00:19]} Ka4 {[%emt 0:00:18]} 65. Rd2 {[%emt 0:00:00]} Kb4 {[%emt 0:00:
05]} 66. Rh2 {[%emt 0:00:30]} Ka4 {[%emt 0:00:51]} 67. Rc2 {[%emt 0:00:07]} Kb4
{[%emt 0:00:05]} 68. Re2 {[%emt 0:00:05]} Ka4 {[%emt 0:00:12]} 69. f6 {[%emt 0:
00:38]} Kb4 {[%emt 0:00:52]} 70. f7 {[%emt 0:00:00]} Rxf7 {[%emt 0:00:04]} 71.
Re4+ {[%emt 0:00:08]} Kc3 {[%emt 0:00:58]} 72. Re3+ {[%emt 0:00:28]} Kb4 {
[%emt 0:00:32]} 73. Rb3+ {[%emt 0:00:33]} Kc4 {[%emt 0:00:01]} 74. Rxa3 {
[%emt 0:01:05]} Rf2+ {[%emt 0:01:00]} 75. Kb1 {[%emt 0:00:03]} Rh2 {[%emt 0:00:
04]} 76. Kc1 {[%emt 0:00:21]} Kd4 {[%emt 0:00:00]} 77. Kd1 {[%emt 0:00:09]} Ke4
{[%emt 0:00:04]} 78. Ke1 {[%emt 0:00:27]} Kf4 {[%emt 0:00:26]} 79. Kf1 {
[%emt 0:00:07]} Rb2 {[%emt 0:00:24]} 80. Rc3 {[%emt 0:00:19]} Ra2 {[%emt 0:00:
13]} 81. Kg1 {[%emt 0:00:35]} Rb2 {[%emt 0:00:00]} 82. Kf1 {[%emt 0:00:53]} Rh2
{[%emt 0:01:23]} 83. Ke1 {[%emt 0:01:09]} Ke4 {[%emt 0:00:28] Weighted Error
Value: White=0.43/Black=0.30} 1/2-1/2